Cogmind - Beta 16 @@@ ROGUE MODE // 2025.10.31 @ 02:56:37 Player: souux Result: Self-destructed Performance ------------- Evolutions (2) 1000 Regions Visited (3) 600 Robots Destroyed (54) 270 Value Destroyed (1209) 1209 Prototype IDs (14) 280 Alien Tech Used (0) 0 Bonus (-12) -12 TOTAL SCORE: 3347 Bonus ------- Friendly Fire -12 Cogmind --------- Core Integrity 498/550 Matter 220/300 Energy 125/125 System Corruption 0% Temperature Cool (0) Movement Treading (160) Location -8/Materials Parts ------- > --- POWER (1) -------- Light Ion Engine > --- PROPULSION (4) --- Light Treads Light Treads > --- UTILITY (4) ------ Medium Storage Unit Structural Scanner Reflective Plating > --- WEAPON (2) ------- Heavy Assault Rifle > --- INVENTORY (10) --- Subdweller Power Source High-capacity Matter Pod (200) Scrap Shield Powered Cannon High-powered Shotgun Missile Launcher Multitool Ripper Peak State ------------ > --- POWER ------------ Light Ion Engine > --- PROPULSION ------- Light Treads Light Treads Light Treads > --- UTILITY ---------- Medium Storage Unit Structural Scanner Reflective Plating > --- WEAPON ----------- High-powered Shotgun Heavy Battle Rifle > --- INVENTORY -------- Subdweller Power Source High-capacity Matter Pod Scrap Shield Powered Cannon Multitool Ripper [Rating: 18] Favorites ----------- Power Light Ion Engine Engine Light Ion Engine Propulsion Light Treads Treads Light Treads Utility Medium Storage Unit Device Seismic Detector Storage Medium Storage Unit Protection Reflective Plating Weapon Subdweller Machine Gun Energy Gun Medium Laser Energy Cannon Subdweller Beam Cannon Ballistic Gun Subdweller Machine Gun Launcher Grenade Launcher Build | -11 -10 -10 -8 ------- Run | Yrd Mat Sub Mat Slots Evolved 4 | . . . 4 Power . | . . . . Propulsion 2 | . . . 2 Utility 2 | . . . 2 Weapon . | . . . . Parts Attached 43 | 7 6 24 6 Power 7 | 1 2 4 . Engine 7 | 1 2 4 . Core . | . . . . Reactor . | . . . . Propulsion 10 | 2 1 6 1 Treads 10 | 2 1 6 1 Leg . | . . . . Wheel . | . . . . Hover . | . . . . Flight . | . . . . Utility 6 | 2 1 2 1 Device 3 | 1 . 2 . Storage 2 | 1 1 . . Processor . | . . . . Hackware . | . . . . Protection 1 | . . . 1 Artifact . | . . . . Weapon 20 | 2 2 12 4 Energy Gun 2 | 1 . 1 . Energy Cannon 5 | . . 5 . Ballistic Gun 10 | 1 1 5 3 Ballistic Cannon . | . . . . Launcher 3 | . 1 1 1 Special Weapon . | . . . . Impact Weapon . | . . . . Slashing Weapon . | . . . . Piercing Weapon . | . . . . Special Melee Weapon . | . . . . Unidentified Prototypes . | . . . . Parts Lost 7 | . 1 4 2 Power 2 | . . 2 . Propulsion 1 | . . . 1 Utility 2 | . . 2 . Weapon 2 | . 1 . 1 Highest Loss Streak 2 | . 1 1 2 To Critical Strikes . | . . . . Average Backups 8 | 6 8 8 7 Power . | 1 1 . 1 Propulsion 2 | 4 4 1 . Utility 2 | . 1 3 2 Weapon 1 | . 1 1 3 Tool/Special . | . . . . Unused Backups 16 | . 6 4 6 Power 1 | . . . 1 Propulsion 5 | . 5 . . Utility 3 | . . 1 2 Weapon 6 | . 1 3 2 Tool/Special 1 | . . . 1 Average Slot Usage (%) 99 | . 100 99 75 Engine 13 | . 14 13 9 Treads 27 | . 28 28 25 Device 13 | . 14 13 9 Storage 13 | . 14 14 9 Energy Gun 3 | . 13 . . Energy Cannon 7 | . . 9 . Ballistic Gun 16 | . 14 17 18 Peak Build Rating 18 | 7 8 14 18 Average Rating 10 | 5 7 11 15 On Entrance 6 | . 7 8 12 Avg Prop Armor Cover (%) . | . . . . Naked Turns . | . . . . Heaviest Build 32 | 13 20 32 25 Greatest Support 60 | 40 40 40 60 Greatest Overweight (x) 2 | 2 . . . Average Overweight (x) . | . . . . Largest Inventory Capacity 10 | 8 10 10 10 Average Capacity 9 | 7 8 10 10 Most Carried 10 | 8 10 10 10 Average Carried 8 | 6 8 8 9 Final Capacity 10 | 8 10 10 10 Final Carried 10 | 8 10 10 10 Class Distribution -------------------- 88% | Mutant 11% | Scavenger-Mutant Dominant Class ---------------- Mutant | -10/Materials Mutant | -10/Subcaves Mutant | -8/Materials Resources | -11 -10 -10 -8 ----------- Run | Yrd Mat Sub Mat Matter Collected 1470 | 300 477 654 39 Remotely . | . . . . Salvage Created 1519 | 175 455 849 40 Parts 105 | 14 38 52 1 Haulers Intercepted 2 | . 2 . . Recyclers Shooed 1 | . 1 . . Parts Field Recycled . | . . . . Retrieved Matter . | . . . . Parts Self-Destructed 10 | . . 10 . Prevented . | . . . . Parts Restored . | . . . . Kills | -11 -10 -10 -8 ------- Run | Yrd Mat Sub Mat Combat Hostiles Destroyed 40 | . 13 26 1 Guns 18 | . 7 10 1 Cannons 11 | . . 11 . AOE 9 | . 6 3 . Classes Destroyed 11 | 2 7 2 . Worker 2 | . 2 . . Builder 2 | . 2 . . Tunneler 4 | 4 . . . Hauler 2 | . 2 . . Recycler 1 | 1 . . . Operator 2 | . 2 . . Watcher 1 | . 1 . . Swarmer 16 | . 9 7 . Grunt 7 | . 4 3 . Sentry 2 | . . 1 1 Subdweller 15 | . . 15 . Best Kill Streak 14 | 4 14 4 1 Combat Bots Only 9 | . 9 4 1 Max Kills in Single Turn 7 | 2 7 2 1 Gunslinging . | . . . . Exploded 4 | . 4 2 . Melee . | . . . . Uniques/NPCs Destroyed . | . . . . Combat | -11 -10 -10 -8 -------- Run | Yrd Mat Sub Mat Hostile Shots Fired 197 | . 46 121 30 Missed 49 | . 12 34 3 Hits 148 | . 34 87 27 Projectile 148 | . 34 87 27 Critical Strikes 3 | . 1 1 1 Damage Taken 2074 | . 327 1328 419 Core 263 | . 37 174 52 Absorbed by Shields . | . . . . Core Remaining (%) 57 | 100 . 15 . Volleys Fired 197 | 10 41 136 10 Largest 2 | 2 2 2 2 Hottest 160 | 70 70 160 60 Shots Fired 314 | 20 76 198 20 Gun 195 | 20 73 82 20 Cannon 113 | . . 113 . Launcher 6 | . 3 3 . Special . | . . . . Kinetic 149 | 10 38 81 20 Thermal 162 | 10 35 117 . Explosive 3 | . 3 . . Electromagnetic . | . . . . Robot Hit Streak 18 | 8 16 18 4 Robot Miss Streak 4 | 1 4 4 3 Penetration Max . | . . . . Secondary Targets 1 | . 1 . . Max Gunslinging Chain 1 | . 1 . . Shots Hit Robots 162 | 15 53 83 11 Core Hits 68 | 6 29 31 2 Critical Kills 2 | . . 2 . Critical Parts Destroyed . | . . . . Critical Strikes 11 | 1 8 2 . Burn 9 | 1 8 . . Meltdown 2 | . . 2 . Melee Attacks . | . . . . Impact . | . . . . Slashing . | . . . . Piercing . | . . . . Sneak Attacks . | . . . . Combat Hostiles . | . . . . Follow-up Attacks . | . . . . Damage Inflicted 3521 | 197 1086 2027 211 Guns 1818 | 197 665 745 211 Cannons 1152 | . . 1152 . Explosions 539 | . 409 130 . Melee . | . . . . Ramming 12 | . 12 . . Kinetic 1420 | 70 301 838 211 Thermal 1680 | 127 364 1189 . Explosive 409 | . 409 . . Electromagnetic . | . . . . Impact . | . . . . Slashing . | . . . . Piercing . | . . . . Highest Corruption 4 | . 4 4 . Average Corruption 3 | . 3 4 . Corruption Purged . | . . . . Corruption Blocked . | . . . . Effects 135 | . 31 104 . Message Errors 43 | . 10 33 . Matter Fused 27 | . 8 19 . Heat Flow Errors 16 | . 1 15 . Energy Discharges 11 | . 2 9 . Parts Fused 1 | . . 1 . Data Loss (minor) 19 | . 7 12 . Data Loss (major) 7 | . . 7 . Misfires 4 | . 1 3 . Alerts 5 | . 1 4 . Weapon Failures 2 | . 1 1 . Overload Shots . | . . . . Overflow Damage 25 | . 17 8 . Projectiles 6 | . . 6 . Explosions 19 | . 17 2 . Melee . | . . . . Knockbacks . | . . . . Impact . | . . . . Kinetic . | . . . . Secondary . | . . . . Self-Inflicted Damage 30 | . 30 . . Shots 1 | . 1 . . Rammed 1 | . 1 . . Targets Rammed 1 | . 1 . . Kicked . | . . . . Crushed . | . . . . Highest Temperature 270 | 63 270 243 3 Average Temperature 52 | 25 39 69 3 Received Heat Transfer 417 | . 48 324 45 Effects 1 | . 1 . . Energy Bleed 1 | . 1 . . Siege Activations . | . . . . Martial Activations . | . . . . Shielding Activations . | . . . . Robots Disrupted . | . . . . Combat Hostiles . | . . . . Robots Corrupted . | . . . . Combat Hostiles . | . . . . Parts Fried . | . . . . Impact Corruptions . | . . . . Robots Melted 2 | . . 2 . Combat Hostiles 2 | . . 2 . Parts Melted 8 | . 5 3 . Heat Transferred 3774 | 444 1665 1665 . Parts Sabotaged . | . . . . Parts Stolen . | . . . . Parts Stripped . | . . . . Power Chain Reactions . | . . . . Alert | -11 -10 -10 -8 ------- Run | Yrd Mat Sub Mat Maximum Alert Level 1 | . 1 . . Low Security (%) 87 | 100 84 . 100 Level 1 12 | . 15 . . Level 2 . | . . . . Level 3 . | . . . . Level 4 . | . . . . Level 5 . | . . . . High Security . | . . . . Max Security . | . . . . Peak Influence 248 | 15 248 . 31 Initial . | . . . . Average 87 | 2 106 . 8 Influence Increases 859 | 25 428 375 31 Destroy 0b10 Robot/C 500 | . 260 220 20 Destroy 0b10 Robot/NC 70 | 25 45 . . Destroy Leader 76 | . 46 20 10 Successful Hack 25 | . 25 . . Disable Machine 15 | . 15 . . Destroy Structure 23 | . 22 . 1 Lose Combat Pursuer 150 | . 15 135 . Influence Decreases 859 | 25 424 379 31 Entered New Map 3 | . . 3 . Time Decay 826 | 25 414 356 31 Lost Part 30 | . 10 20 . Squads Dispatched 5 | . 2 . 3 Investigation 1 | . . . 1 Extermination . | . . . . Reinforcement 4 | . 2 . 2 Assault . | . . . . Garrison . | . . . . Intercept . | . . . . Searches Triggered . | . . . . Construction Impeded 1 | . . . 1 Haulers Reinforced . | . . . . Active Scanning Responses . | . . . . Cargo Convoy Interrupts . | . . . . Stealth | -11 -10 -10 -8 --------- Run | Yrd Mat Sub Mat Distress Signals 1 | . 1 . . Communications Jammed . | . . . . Distress Signals . | . . . . Times Spotted 63 | . 29 30 4 Peak Tracking Total 10 | . 10 6 3 Tactical Retreats 6 | . 1 5 . Traps | -11 -10 -10 -8 ------- Run | Yrd Mat Sub Mat Traps Triggered 6 | . 4 2 . Indirectly . | . . . . Trap Hack Attempts . | . . . . Triggered . | . . . . Disarmed . | . . . . Reprogrammed . | . . . . Reused . | . . . . Traps Extracted . | . . . . Installed . | . . . . Triggered . | . . . . Machines | -11 -10 -10 -8 ---------- Run | Yrd Mat Sub Mat Machines Disabled 2 | . 1 1 . Max in Single Turn 1 | . 1 1 . Machines Repaired . | . . . . Machines Dismantled . | . . . . Machines Sabotaged . | . . . . Overloaded Fab Kills . | . . . . Hacking | -11 -10 -10 -8 --------- Run | Yrd Mat Sub Mat Machines Accessed 7 | . 4 2 1 Terminals 5 | . 4 . 1 Fabricators . | . . . . Repair Stations . | . . . . Recycling Units . | . . . . Scanalyzers . | . . . . Garrison Access . | . . . . Total Hacks 23 | . 15 6 2 Successful 14 | . 8 6 . Failed 9 | . 7 . 2 Catastrophic 1 | . . . 1 Database Lockouts . | . . . . Manual 14 | . 12 . 2 Terminals 17 | . 15 . 2 Fabricators . | . . . . Repair Stations . | . . . . Recycling Units . | . . . . Scanalyzers . | . . . . Garrison Access . | . . . . Terminal Hacks 8 | . 2 6 . Record 5 | . . 5 . Prototype ID Bank 1 | . 1 . . Hauler Manifests 1 | . 1 . . Proto ID Catalog 1 | . . 1 . Fabricator Hacks . | . . . . Repair Station Hacks . | . . . . Recycling Unit Hacks . | . . . . Scanalyzer . | . . . . Garrison Access Hacks . | . . . . Unauthorized Hacks 6 | . 6 . . Terminals 6 | . 6 . . Botnet 2 | . 2 . . Skim 4 | . 4 . . Fabricators . | . . . . Repair Stations . | . . . . Recycling Units . | . . . . Scanalyzers . | . . . . Garrison Access . | . . . . Data Cores Recovered . | . . . . Used . | . . . . Hacking Detections 5 | . 4 . 1 Full Trace Events 1 | . . . 1 Feedback Events . | . . . . Feedback Blocked . | . . . . Robot Schematics Acquired . | . . . . Robots Built . | . . . . Authchips . | . . . . Time . | . . . . Total Robot Build Rating . | . . . . Part Schematics Acquired . | . . . . Parts Built . | . . . . Authchips . | . . . . Time . | . . . . Total Part Build Rating . | . . . . Part Studies Acquired . | . . . . Parts Repaired . | . . . . Time . | . . . . Parts Recycled . | . . . . Recycled Matter . | . . . . Retrieved Matter . | . . . . Retrieved Components . | . . . . Parts Scanalyzed . | . . . . Part Schematics Acquired . | . . . . Parts Damaged . | . . . . Bothacking | -11 -10 -10 -8 ------------ Run | Yrd Mat Sub Mat Used RIF Installer . | . . . . Robots Hacked . | . . . . Non-combat . | . . . . Combat . | . . . . Robot Hacks Applied . | . . . . Relay Couplers Released . | . . . . Fabnet Peak Effective % . | . . . . Robots Rewired . | . . . . Allies Hacked . | . . . . Hacks Repelled . | . . . . Allies | -11 -10 -10 -8 -------- Run | Yrd Mat Sub Mat Total Allies . | . . . . Largest Group . | . . . . Highest-Rated Group . | . . . . Highest-Rated Ally . | . . . . Total Orders . | . . . . Ally Attacks . | . . . . Total Damage . | . . . . Kills . | . . . . Allies Corrupted . | . . . . Allies Melted . | . . . . Intel | -11 -10 -10 -8 ------- Run | Yrd Mat Sub Mat Active Infowar (turns) 6439 | 37 1306 4956 140 Structural 2208 | . . 2068 140 Seismic 4231 | 37 1306 2888 . Robot Analysis Total . | . . . . Derelict Logs Recovered . | . . . . Drone Launches . | . . . . Drone Recoveries . | . . . . Exploration | -11 -10 -10 -8 ------------- Run | Yrd Mat Sub Mat Turns Passed 6572 | 151 1306 4975 140 Spaces Moved 3668 | 70 721 2818 59 Core 20 | 20 . . . Treads 3648 | 50 721 2818 59 Legs . | . . . . Wheels . | . . . . Hover . | . . . . Flight . | . . . . Fastest Speed 50 | 50 160 160 160 Average Speed 159 | 142 160 160 160 Slowest Speed 160 | 160 160 160 160 Overloaded Moves . | . . . . Propulsion Burnouts . | . . . . Robots Hopped . | . . . . Potential Cave-ins 3 | . . 3 . Cave-ins Triggered . | . . . . Exploration Rate (%) 51 | 5 98 95 6 Regions Visited 3 Branch Regions 1 Pre-discovered Areas . | . . . . Known Exits Taken . | . . . . Unknown Exits Taken 3 | 1 1 1 . Scrap Searched 13 | . . 13 . Spaces Dug 15 | . . 15 . Terrain Destroyed 106 | . 19 86 1 Melee . | . . . . Projectile 38 | . . 37 1 AOE 68 | . 19 49 . Terrain Rammed . | . . . . Walls Destroyed . | . . . . Machines Disabled . | . . . . Actions | -11 -10 -10 -8 --------- Run | Yrd Mat Sub Mat Total 4078 | 100 800 3094 84 Wait 72 | 1 7 64 . Move 3665 | 69 720 2817 59 Hop . | . . . . Pick Up 48 | 13 11 19 5 Fast Attach 9 | 2 2 5 . Attach 18 | 5 1 9 3 Detach . | . . . . Swap 25 | . 6 15 4 Drop 43 | . 11 29 3 Fire 197 | 10 41 136 10 Melee . | . . . . Ram . | . . . . Kick . | . . . . Crush 1 | . 1 . . Escape Stasis . | . . . . Rewire . | . . . . Trap . | . . . . Miscellaneous . | . . . . Route ------- -11/Scrapyard -10/Materials (discovered 6 exits: [*Mat x3] / [*Min x2] / *Sub) -10/Subcaves (discovered 2 exits: *Mat x2) -8/Materials History --------- Turn | Location | Event 2 | -11/Scrapyard | Met Revision 17 30 | -11/Scrapyard | Discovered new exit (range 15) 152 | -11/Scrapyard | Entered Materials 243 | -10/Materials | Discovered new exit (range 8) 306 | -10/Materials | Build established: Mutant 367 | -10/Materials | Destroyed 9 combat bots 431 | -10/Materials | Discovered new exit (range 9) 455 | -10/Materials | Discovered new exit (range 5) 723 | -10/Materials | Discovered new exit (range 12) 983 | -10/Materials | Discovered new exit (range 10) 1047 | -10/Materials | Discovered new exit (range 15) 1458 | -10/Materials | Entered Subcaves 1459 | -10/Subcaves | Approached by a straggling Scientist 2026 | -10/Subcaves | A swath of the cavern ceiling suddenly collapsed 2112 | -10/Subcaves | Core integrity fell below 50% 2399 | -10/Subcaves | Disturbed a concealed Subdweller 2508 | -10/Subcaves | Shifting Twisted Machinery released Sub. Monowheel 2533 | -10/Subcaves | Shifting Twisted Machinery released Riot Gun 2739 | -10/Subcaves | Discovered new exit (range 13) 2870 | -10/Subcaves | Build established: Scavenger-Mutant 2891 | -10/Subcaves | Shifting Twisted Machinery released Battle Rifle 2891 | -10/Subcaves | Shifting Twisted Machinery released Sub. Laser 3444 | -10/Subcaves | Discovered new exit (range 9) 3514 | -10/Subcaves | A swath of the cavern ceiling suddenly collapsed 3557 | -10/Subcaves | Build established: Mutant 4346 | -10/Subcaves | Core integrity fell below 20% 4415 | -10/Subcaves | Visited Clippyterm 4420 | -10/Subcaves | Learned 40 Factory zone layouts 4420 | -10/Subcaves | Learned Factory stockpile data 6032 | -10/Subcaves | Visited 4L-MR0's lab 6051 | -10/Subcaves | Found Powered Cannon 6253 | -10/Subcaves | Shifting Twisted Machinery released Sub. Power Source 6258 | -10/Subcaves | Shifting Twisted Machinery released Flamer 6433 | -10/Subcaves | Entered Materials 6433 | -8/Materials | Evolved 4 slots: Propulsion x2, Utility x2 6573 | -8/Materials | Self-destructed Last Messages --------------- 06526_ Connecting with Terminal... 06526_ Current location identified: Materials 06526_ ALERT: Suspicious activity at Terminal M004. Dispatching Investigation squad. 06530_ U-05 Engineer builds a Wall. 06535_ T-07 Excavator is excavating. 06549_ ALERT: Construction progress impeded, dispatching reinforcements to local area. 06558_ O-16 Technician: "IFF HANDSHAKE FAILED. SECURING TERMINAL." 06559_ Lgt. Treads destroyed. 06561_ Penetrated by Slug. 06562_ Slug penetrates Wall. 06566_ ALERT: Hostiles spotted, dispatching reinforcements to Terminal M008. 06567_ Penetrated by Slug. 06569_ K-01 Serf collects debris. 06570_ Penetrated by Slug. 06573_ Hvy. Battle Rifle destroyed. 06573_ K-01 Serf collects debris. Map ----- +----------------------------------------------------+ | | | | | | | | | | | | | | | | | | | | | | | | | | | | | | | | | | | ?????????????#################???????????????????? | | ?????????????## !/ ##?####??????????????? | | ?????????????## ! ""##?#######???????????? | | ???????????#### / T"##?## ####???????????? | | ???????????#### ""##### #######??????? | | ???????????### %! ! ###### ########??????? | | ???????????####[[ + ##?## ??? | | ???????????##########+###/######## + ??? | | ?????????????####### @############# ##### ??? | | ???????????######### ##????####### ##### ??? | | ???????????######### ###??????????? ##??????? | | ???????????## #### ###????????????????????? | | ?????????#### #### ##????????????????????? | | ?????????## # #### # ????????????????????? | | ?????????## #### # ????????????????????? | | ?????????## # h# ????????????????????? | | ?????????#### k h # ????????????????????? | | ???????????## # ????????????????????? | | ???????????## # ????????????????????? | | ??????????? # """ """ # ????????????????????? | | ??????????? # """ """ # ????????????????????? | | ??????????? + """ """ ##????????????????????? | | ??????????? # ????????????????????? | | ??????????? # ???????????????????? | | ??????????? # ?????????????????? | | ???????????###+###########+#####?????????????????? | | ??????????? ##### # ?????????????????? | | ?????????????????????????????????????????????????? | | ?????????????????????????????????????????????????? | | ?????????????????????????????????????????????????? | | ?????????????????????????????????????????????????? | | ?????????????????????????????????????????????????? | | ?????????????????????????????????????????????????? | +----------------------------------------------------+ Best States ------------- Heat Dissipation 31 Energy Generation 15 Energy Capacity 250 Matter Stores 300 Matter Capacity 300 Sight Range 16 Terrain Scan Density 10 Armor Coverage 150 Resistance: TH 10 Evasion (%) 40 Recoil Reduction 3 Item Schematics ----------------- None Robot Schematics ------------------ None Fabricated ------------ Nothing Repaired ---------- Nothing Studied --------- None Alien Tech Used ----------------- None Achievements -------------- You Again Challenges ------------ None Game ------ Seed FieldShadeCanceller Manual? 0 Play Time 00:48:31 Cumulative 68.3 hours Start 2025.10.31 @ 02:00:30 End 2025.10.31 @ 02:56:37 Sessions 2 Manual Loads 0 Difficulty Rogue Special Mode None Game No. 59 Rogue 59 Adventurer 0 Explorer 0 Win Type - Total 0 Types 0/0/0/0/0/0/0/0/0/0 Lore% 26 Gallery% 38 Achievement% 26 Wizard Run 0 Options --------- Layout 2 ASCII 0 Keyboard 0 Movement Mouse Keybinds 0 Fullscreen 2 Font 24/Terminus Map View 50x44 Zoom Use 5% Tactical HUD 1 Map Filters NONE Filters NONE Steam 1 RUN: d3e1f172-e872-4838-a72a-f1abcf26adba